[Event "RUS-ch Rapid 2021"]
[Site "Sochi"]
[Date "2021.10.13"]
[Round "8.13"]
[White "Nozdrachev, Vladislav"]
[Black "Oganian, Miran"]
[Result "1/2-1/2"]
[ECO "B38"]
[WhiteElo "2495"]
[BlackElo "2441"]
[Annotator "ChessBase"]
[PlyCount "107"]
[EventDate "2021.10.12"]
[EventType "swiss"]
[EventCountry "RUS"]
[SourceTitle "playchess.com"]
[Source "ChessBase"]
[SourceQuality "1"]
[TimeControl "900+10"]

1. e4 {[%emt 0:00:00]} c5 {[%emt 0:00:05]} 2. Nf3 {[%emt 0:00:01]} g6 {[%emt 0:
00:00]} 3. d4 {[%emt 0:00:32]} cxd4 {[%emt 0:00:00]} 4. Nxd4 {[%emt 0:00:00]}
Bg7 {[%emt 0:00:00]} 5. c4 {[%emt 0:00:00]} Nc6 {[%emt 0:00:04]} 6. Be3 {
[%emt 0:00:00]} Nf6 {[%emt 0:00:00]} 7. Nc3 {[%emt 0:00:00]} O-O {[%emt 0:00:
07]} 8. Be2 {[%emt 0:00:00]} d6 {[%emt 0:00:12]} 9. O-O {[%emt 0:00:01]} Bd7 {
[%emt 0:00:02]} 10. f3 {[%emt 0:00:09]} Nxd4 {[%emt 0:00:14]} 11. Bxd4 {
[%emt 0:00:00]} Bc6 {[%emt 0:00:00]} 12. Qd2 {[%emt 0:00:09]} Nd7 {[%emt 0:00:
15]} 13. Be3 {[%emt 0:00:03]} a5 {[%emt 0:00:00]} 14. b3 {[%emt 0:00:03]} Nc5 {
[%emt 0:00:48]} 15. Rac1 {[%emt 0:00:26]} Qb6 {[%emt 0:04:08]} 16. Nd5 {
[%emt 0:00:39]} Bxd5 {[%emt 0:00:23]} 17. exd5 {[%emt 0:00:04]} Qb4 {[%emt 0:
00:21]} 18. Rc2 {[%emt 0:01:16]} Na6 {[%emt 0:01:27]} 19. Rb1 {[%emt 0:02:01]}
Qa3 {[%emt 0:03:50]} 20. Qc1 {[%emt 0:01:19]} Qxc1+ {[%emt 0:00:01]} 21. Rcxc1
{[%emt 0:00:19]} Nb4 {[%emt 0:00:02]} 22. a3 {[%emt 0:00:20]} Na2 {[%emt 0:00:
11]} 23. Rc2 {[%emt 0:00:00]} Nc3 {[%emt 0:00:01]} 24. Rbc1 {[%emt 0:00:12]}
Nxe2+ {[%emt 0:00:13]} 25. Rxe2 {[%emt 0:00:03]} a4 {[%emt 0:01:13]} 26. b4 {
[%emt 0:00:06]} Rfd8 {[%emt 0:00:40]} 27. Bg5 {[%emt 0:01:46]} Bd4+ {[%emt 0:
00:10]} 28. Kf1 {[%emt 0:00:00]} f6 {[%emt 0:00:02]} 29. Be3 {[%emt 0:00:52]}
Bxe3 {[%emt 0:00:03]} 30. Rxe3 {[%emt 0:00:03]} Kf7 {[%emt 0:00:11]} 31. Ke2 {
[%emt 0:00:17]} Rd7 {[%emt 0:00:17]} 32. Kd3 {[%emt 0:00:00]} b6 {[%emt 0:00:
59]} 33. g4 {[%emt 0:00:39]} Rh8 {[%emt 0:00:39]} 34. h4 {[%emt 0:00:46]} h5 {
[%emt 0:00:00]} 35. Rh1 {[%emt 0:00:03]} Rc7 {[%emt 0:00:13]} 36. Re4 {[%emt 0:
00:11]} Rh7 {[%emt 0:00:54]} 37. b5 {[%emt 0:01:28]} Rc8 {[%emt 0:00:56]} 38.
Kc3 {[%emt 0:00:35]} hxg4 {[%emt 0:00:33]} 39. fxg4 {[%emt 0:00:35]} Rch8 {
[%emt 0:00:07]} 40. Rhe1 {[%emt 0:00:27]} Re8 {[%emt 0:00:00]} 41. g5 {[%emt 0:
00:40]} f5 {[%emt 0:00:09]} 42. Rd4 {[%emt 0:00:06]} Reh8 {[%emt 0:00:09]} 43.
Rh1 {[%emt 0:00:37]} Rh5 {[%emt 0:00:00]} 44. Kb4 {[%emt 0:03:06]} Rxg5 {
[%emt 0:01:55]} 45. Kxa4 {[%emt 0:00:05]} Rg4 {[%emt 0:00:10]} 46. Rxg4 {
[%emt 0:00:45]} fxg4 {[%emt 0:00:05]} 47. Rg1 {[%emt 0:00:25]} Rxh4 {[%emt 0:
00:27]} 48. Kb4 {[%emt 0:00:01]} Rh8 {[%emt 0:00:43]} 49. Rxg4 {[%emt 0:00:07]}
Kf6 {[%emt 0:00:00]} 50. Rf4+ {[%emt 0:00:20]} Kg7 {[%emt 0:00:04]} 51. Re4 {
[%emt 0:00:19]} Kf7 {[%emt 0:00:09]} 52. Rf4+ {[%emt 0:00:01]} Kg7 {[%emt 0:00:
01]} 53. Re4 {[%emt 0:00:03]} Kf7 {[%emt 0:00:00]} 54. Rf4+ {[%emt 0:00:02]}
1/2-1/2

[Event "RUS-ch Rapid 2021"]
[Site "Sochi"]
[Date "2021.10.13"]
[Round "8.14"]
[White "Gutenev, Alexander"]
[Black "Bocharov, Dmitry"]
[Result "0-1"]
[ECO "B90"]
[WhiteElo "2455"]
[BlackElo "2517"]
[Annotator "RC"]
[PlyCount "117"]
[EventDate "2021.10.12"]
[EventType "swiss"]
[EventCountry "RUS"]
[SourceTitle "playchess.com"]
[Source "ChessBase"]
[SourceQuality "1"]
[TimeControl "900+10"]

1. e4 {[%emt 0:00:06]} c5 {[%emt 0:00:08]} 2. Nf3 {[%emt 0:00:19]} d6 {[%emt 0:
00:02]} 3. d4 {[%emt 0:00:10]} cxd4 {[%emt 0:00:00]} 4. Nxd4 {[%emt 0:00:00]}
Nf6 {[%emt 0:00:07]} 5. Nc3 {[%emt 0:00:00]} a6 {[%emt 0:00:03]} 6. Qd3 {
[%emt 0:00:30]} Nbd7 {[%emt 0:00:38]} 7. Be2 {[%emt 0:00:21]} g6 {[%emt 0:00:
14]} 8. O-O {[%emt 0:00:33]} Bg7 {[%emt 0:00:02]} 9. a4 {[%emt 0:00:00]} b6 {
[%emt 0:00:43]} 10. f4 {[%emt 0:02:10]} Bb7 {[%emt 0:00:51]} 11. Bf3 {[%emt 0:
00:00]} O-O {[%emt 0:06:38]} 12. e5 {[%emt 0:06:05]} dxe5 {[%emt 0:00:25]} 13.
Bxb7 {[%emt 0:00:00]} Nc5 {[%emt 0:02:46]} 14. Qc4 {[%emt 0:00:02]} Nxb7 {
[%emt 0:01:38]} 15. Nc6 {[%emt 0:01:37]} Na5 {[%emt 0:00:47]} 16. Nxa5 {
[%emt 0:01:53]} bxa5 {[%emt 0:00:03]} 17. fxe5 {[%emt 0:02:11]} Nd7 {[%emt 0:
00:03]} 18. Be3 {[%emt 0:00:51]} Nxe5 {[%emt 0:00:11]} 19. Qe4 {[%emt 0:00:06]}
e6 {[%emt 0:00:37]} 20. Bc5 {[%emt 0:00:22]} Re8 {[%emt 0:00:00]} 21. Rad1 {
[%emt 0:00:03]} Qc7 {[%emt 0:00:37]} 22. Bd6 {[%emt 0:00:27]} Qc4 {[%emt 0:00:
59]} 23. Bxe5 {[%emt 0:00:51]} Qxe4 {[%emt 0:00:02]} 24. Nxe4 {[%emt 0:00:01]}
Bxe5 {[%emt 0:00:03]} 25. Rd7 {[%emt 0:00:13]} f5 {[%emt 0:00:27]} 26. Nc5 {
[%emt 0:00:00]} Rac8 {[%emt 0:00:08]} 27. Nd3 {[%emt 0:00:14]} Bf6 {[%emt 0:00:
00]} 28. c3 {[%emt 0:00:01]} Red8 {[%emt 0:00:16]} 29. Rxd8+ {[%emt 0:00:00]}
Rxd8 {[%emt 0:00:02]} 30. Nc5 {[%emt 0:00:09]} Rd6 {[%emt 0:00:52]} 31. Rf2 {
[%emt 0:00:07]} Be7 {[%emt 0:00:16]} 32. Nb7 {[%emt 0:00:37]} Rb6 {[%emt 0:00:
02]} 33. Nxa5 {[%emt 0:00:03]} Bc5 {[%emt 0:00:06]} 34. b4 {[%emt 0:00:19]}
Bxf2+ {[%emt 0:00:02]} 35. Kxf2 {[%emt 0:00:00]} e5 {[%emt 0:00:22]} 36. Ke3 {
[%emt 0:00:03]} Kg7 {[%emt 0:00:26]} 37. Nc4 {[%emt 0:00:25]} Rc6 {[%emt 0:00:
01]} 38. Kd3 {[%emt 0:00:09]} Kf6 {[%emt 0:00:02]} 39. b5 {[%emt 0:00:00]} axb5
{[%emt 0:00:10]} 40. axb5 {[%emt 0:00:00]} Rc5 {[%emt 0:00:03]} 41. Na3 {
[%emt 0:00:13]} Ke6 {[%emt 0:00:21]} 42. c4 {[%emt 0:00:01]} Rc8 {[%emt 0:00:
16]} 43. Nc2 {[%emt 0:00:04]} Kd6 {[%emt 0:00:06]} 44. Nb4 {[%emt 0:00:01]} Kc5
{[%emt 0:00:16]} 45. Kc3 {[%emt 0:00:07]} e4 {[%emt 0:00:10]} 46. Na6+ {
[%emt 0:00:07]} Kb6 {[%emt 0:00:17]} 47. Nb4 {[%emt 0:00:46]} Rd8 {[%emt 0:00:
14]} 48. Nd5+ {[%emt 0:00:41]} Rxd5 {[%emt 0:00:11]} 49. cxd5 {[%emt 0:00:04]}
Kxb5 {[%emt 0:00:00]} 50. Kd4 {[%emt 0:00:02]} Kb6 {[%emt 0:00:03]} 51. g3 {
[%emt 0:00:25]} Kc7 {[%emt 0:00:03]} 52. Kc4 {[%emt 0:00:02]} Kd6 {[%emt 0:00:
21]} 53. Kd4 {[%emt 0:00:02]} h6 {[%emt 0:00:15]} 54. h3 {[%emt 0:00:10]} Kd7 {
[%emt 0:00:12]} 55. Kc4 {[%emt 0:00:07]} g5 {[%emt 0:00:19]} 56. Kd4 {[%emt 0:
00:09]} h5 {[%emt 0:00:03]} 57. Ke3 {[%emt 0:00:30]} h4 {[%emt 0:00:14]} 58.
gxh4 {[%emt 0:00:09]} gxh4 {[%emt 0:00:01]} 59. Kd4 {[%emt 0:00:12]} 0-1

[Event "RUS-ch Rapid 2021"]
[Site "Sochi"]
[Date "2021.10.13"]
[Round "8.15"]
[White "Zubritskiy, Artyom"]
[Black "Savchenko, Boris"]
[Result "1-0"]
[ECO "A37"]
[WhiteElo "2442"]
[BlackElo "2535"]
[Annotator "ChessBase"]
[PlyCount "91"]
[EventDate "2021.10.12"]
[EventType "swiss"]
[EventCountry "RUS"]
[SourceTitle "playchess.com"]
[Source "ChessBase"]
[SourceQuality "1"]
[TimeControl "900+10"]

1. c4 {[%emt 0:00:06]} g6 {[%emt 0:00:00]} 2. g3 {[%emt 0:00:00]} Bg7 {[%emt 0:
00:11]} 3. Bg2 {[%emt 0:00:03]} c5 {[%emt 0:00:00]} 4. Nc3 {[%emt 0:00:03]} Nc6
{[%emt 0:00:01]} 5. Nf3 {[%emt 0:00:00]} e6 {[%emt 0:00:00]} 6. a3 {[%emt 0:00:
56]} Nge7 {[%emt 0:01:34]} 7. Rb1 {[%emt 0:01:37]} d5 {[%emt 0:01:15]} 8. b4 {
[%emt 0:00:33]} cxb4 {[%emt 0:00:29]} 9. axb4 {[%emt 0:00:11]} dxc4 {[%emt 0:
00:00]} 10. b5 {[%emt 0:00:06]} Na5 {[%emt 0:00:14]} 11. Qa4 {[%emt 0:00:35]}
O-O {[%emt 0:00:09]} 12. Ba3 {[%emt 0:00:26]} b6 {[%emt 0:00:10]} 13. Ne5 {
[%emt 0:04:30]} Rb8 {[%emt 0:00:51]} 14. Nc6 {[%emt 0:01:02]} Nexc6 {[%emt 0:
04:03]} 15. Bxf8 {[%emt 0:00:05]} Bxf8 {[%emt 0:00:50]} 16. bxc6 {[%emt 0:00:
01]} a6 {[%emt 0:00:02]} 17. Qxa5 {[%emt 0:03:05]} bxa5 {[%emt 0:00:00]} 18.
Rxb8 {[%emt 0:00:03]} Kg7 {[%emt 0:00:09]} 19. O-O {[%emt 0:00:23]} Bb4 {
[%emt 0:00:00]} 20. Rc1 {[%emt 0:03:01]} Qxd2 {[%emt 0:05:04]} 21. Rd1 {
[%emt 0:00:02]} Qxc3 {[%emt 0:00:00]} 22. Rxc8 {[%emt 0:00:00]} Qe5 {[%emt 0:
00:00]} 23. c7 {[%emt 0:01:18]} Kh6 {[%emt 0:00:09]} 24. Rd4 {[%emt 0:00:37]}
Qc5 {[%emt 0:00:09]} 25. Rd7 {[%emt 0:00:21]} c3 {[%emt 0:00:05]} 26. Be4 {
[%emt 0:00:04]} c2 {[%emt 0:00:09]} 27. Bxc2 {[%emt 0:00:00]} Qxc2 {[%emt 0:01:
44]} 28. Rcd8 {[%emt 0:00:15]} Qxe2 {[%emt 0:02:17]} 29. c8=Q {[%emt 0:00:18]}
Qe1+ {[%emt 0:00:00]} 30. Kg2 {[%emt 0:00:03]} Qe4+ {[%emt 0:00:01]} 31. Kf1 {
[%emt 0:00:12]} Qe1+ {[%emt 0:00:29]} 32. Kg2 {[%emt 0:00:03]} Qe4+ {[%emt 0:
00:00]} 33. f3 {[%emt 0:00:00]} Qe2+ {[%emt 0:00:06]} 34. Kh3 {[%emt 0:00:00]}
Qf1+ {[%emt 0:00:28]} 35. Kg4 {[%emt 0:00:00]} f5+ {[%emt 0:00:09]} 36. Kf4 {
[%emt 0:00:04]} e5+ {[%emt 0:00:12]} 37. Kxe5 {[%emt 0:00:00]} Qe1+ {[%emt 0:
00:08]} 38. Kd5 {[%emt 0:00:30]} Qd1+ {[%emt 0:00:00]} 39. Kc6 {[%emt 0:00:03]}
Qxf3+ {[%emt 0:00:03]} 40. Rd5 {[%emt 0:00:05]} a4 {[%emt 0:00:06]} 41. Qxa6 {
[%emt 0:00:15]} a3 {[%emt 0:00:07]} 42. Qc4 {[%emt 0:00:13]} Be7 {[%emt 0:00:
05]} 43. R8d7 {[%emt 0:00:13]} Bf6 {[%emt 0:00:06]} 44. Ra7 {[%emt 0:00:10]} g5
{[%emt 0:00:04]} 45. Qd3 {[%emt 0:00:08]} Qg4 {[%emt 0:00:51]} 46. Qxf5 {
[%emt 0:00:12]} 1-0

[Event "RUS-ch Rapid 2021"]
[Site "Sochi"]
[Date "2021.10.13"]
[Round "8.16"]
[White "Pershin, Denis"]
[Black "Triapishko, Alexandr"]
[Result "1/2-1/2"]
[ECO "E34"]
[WhiteElo "2388"]
[BlackElo "2506"]
[Annotator "ChessBase"]
[PlyCount "62"]
[EventDate "2021.10.12"]
[EventType "swiss"]
[EventCountry "RUS"]
[SourceTitle "playchess.com"]
[Source "ChessBase"]
[SourceQuality "1"]
[TimeControl "900+10"]

1. d4 {[%emt 0:00:05]} Nf6 {[%emt 0:01:04]} 2. c4 {[%emt 0:00:00]} e6 {[%emt 0:
00:15]} 3. Nc3 {[%emt 0:00:00]} Bb4 {[%emt 0:00:03]} 4. Qc2 {[%emt 0:00:01]} d5
{[%emt 0:00:06]} 5. cxd5 {[%emt 0:00:02]} Qxd5 {[%emt 0:00:06]} 6. e3 {[%emt 0:
00:23]} c5 {[%emt 0:01:13]} 7. Bd2 {[%emt 0:00:04]} Bxc3 {[%emt 0:01:14]} 8.
Bxc3 {[%emt 0:00:02]} cxd4 {[%emt 0:00:12]} 9. Bxd4 {[%emt 0:00:00]} Nc6 {
[%emt 0:00:02]} 10. Bc3 {[%emt 0:00:03]} O-O {[%emt 0:01:31]} 11. Nf3 {[%emt 0:
00:00]} Qc5 {[%emt 0:00:23]} 12. Rc1 {[%emt 0:06:06]} Rd8 {[%emt 0:03:00]} 13.
Be2 {[%emt 0:00:00]} Nd5 {[%emt 0:01:32]} 14. O-O {[%emt 0:00:46]} Nxc3 {
[%emt 0:00:35]} 15. Qxc3 {[%emt 0:00:00]} Qxc3 {[%emt 0:00:12]} 16. Rxc3 {
[%emt 0:00:06]} Bd7 {[%emt 0:00:21]} 17. Rd1 {[%emt 0:00:25]} Be8 {[%emt 0:01:
12]} 18. Kf1 {[%emt 0:02:15]} Kf8 {[%emt 0:00:22]} 19. a3 {[%emt 0:01:54]} Ke7
{[%emt 0:00:23]} 20. Rdc1 {[%emt 0:00:49]} f6 {[%emt 0:01:47]} 21. Ke1 {
[%emt 0:00:04]} Rac8 {[%emt 0:00:53]} 22. Nd2 {[%emt 0:00:04]} Bd7 {[%emt 0:00:
58]} 23. Bf3 {[%emt 0:00:19]} Ne5 {[%emt 0:00:38]} 24. Rxc8 {[%emt 0:02:59]}
Rxc8 {[%emt 0:00:08]} 25. Rxc8 {[%emt 0:00:09]} Nxf3+ {[%emt 0:00:14]} 26. Nxf3
{[%emt 0:00:00]} Bxc8 {[%emt 0:00:03]} 27. e4 {[%emt 0:01:34]} e5 {[%emt 0:00:
13]} 28. Nd2 {[%emt 0:00:08]} Kd6 {[%emt 0:00:11]} 29. Ke2 {[%emt 0:00:04]} Be6
{[%emt 0:00:15]} 30. Kd3 {[%emt 0:00:00]} Kc5 {[%emt 0:00:21]} 31. Kc3 {
[%emt 0:00:04]} b6 {[%emt 0:00:22]} 1/2-1/2

[Event "RUS-ch Rapid 2021"]
[Site "Sochi"]
[Date "2021.10.13"]
[Round "8.17"]
[White "Rozum, Ivan"]
[Black "Bryakin, Mikhail"]
[Result "1-0"]
[ECO "A11"]
[WhiteElo "2529"]
[BlackElo "2498"]
[Annotator "RC"]
[PlyCount "115"]
[EventDate "2021.10.12"]
[EventType "swiss"]
[EventCountry "RUS"]
[SourceTitle "playchess.com"]
[Source "ChessBase"]
[SourceQuality "1"]
[TimeControl "900+10"]

1. Nf3 {[%emt 0:00:00]} d5 {[%emt 0:00:05]} 2. g3 {[%emt 0:00:09]} Nf6 {
[%emt 0:00:00]} 3. Bg2 {[%emt 0:00:00]} c6 {[%emt 0:00:02]} 4. c4 {[%emt 0:00:
07]} dxc4 {[%emt 0:00:00]} 5. O-O {[%emt 0:00:03]} Nbd7 {[%emt 0:00:00]} 6. Na3
{[%emt 0:00:08]} Nb6 {[%emt 0:00:34]} 7. Ne5 {[%emt 0:00:15]} h5 {[%emt 0:00:
09]} 8. Naxc4 {[%emt 0:01:06]} Nxc4 {[%emt 0:00:09]} 9. Nxc4 {[%emt 0:00:00]}
h4 {[%emt 0:00:05]} 10. Qb3 {[%emt 0:00:56]} hxg3 {[%emt 0:00:14]} 11. fxg3 {
[%emt 0:01:48]} Qd4+ {[%emt 0:00:33]} 12. e3 {[%emt 0:00:26]} Qc5 {[%emt 0:00:
00]} 13. Rf4 {[%emt 0:01:18]} e5 {[%emt 0:04:13]} 14. d4 {[%emt 0:00:30]} exd4
{[%emt 0:00:02]} 15. exd4 {[%emt 0:00:08]} Qb4 {[%emt 0:00:02]} 16. Bd2 {
[%emt 0:02:44]} Qxb3 {[%emt 0:00:59]} 17. axb3 {[%emt 0:00:00]} Be6 {[%emt 0:
01:23]} 18. Nb6 {[%emt 0:00:17]} Rb8 {[%emt 0:00:00]} 19. Rxa7 {[%emt 0:00:21]}
Bd6 {[%emt 0:01:06]} 20. Rf1 {[%emt 0:00:50]} Bxb3 {[%emt 0:01:25]} 21. Bf4 {
[%emt 0:00:03]} Bxf4 {[%emt 0:00:19]} 22. Rxf4 {[%emt 0:00:02]} Kd8 {[%emt 0:
00:54]} 23. Rf3 {[%emt 0:01:48]} Be6 {[%emt 0:00:13]} 24. Rc3 {[%emt 0:00:04]}
Rh5 {[%emt 0:00:29]} 25. Rc5 {[%emt 0:00:06]} Rxc5 {[%emt 0:01:20]} 26. dxc5 {
[%emt 0:00:01]} Kc7 {[%emt 0:00:03]} 27. Ra8 {[%emt 0:01:40]} Rxa8 {[%emt 0:00:
34]} 28. Nxa8+ {[%emt 0:00:00]} Kd8 {[%emt 0:00:00]} 29. Nb6 {[%emt 0:00:04]}
Ng4 {[%emt 0:01:14]} 30. Bf3 {[%emt 0:00:18]} Ne5 {[%emt 0:00:13]} 31. Be2 {
[%emt 0:00:00]} g5 {[%emt 0:01:12]} 32. Kf2 {[%emt 0:00:36]} Ke7 {[%emt 0:00:
14]} 33. Ke3 {[%emt 0:00:15]} f5 {[%emt 0:00:15]} 34. b4 {[%emt 0:01:29]} Kf6 {
[%emt 0:00:24]} 35. Kd4 {[%emt 0:00:53]} f4 {[%emt 0:01:38]} 36. gxf4 {[%emt 0:
00:04]} gxf4 {[%emt 0:00:00]} 37. Ke4 {[%emt 0:00:05]} Ng6 {[%emt 0:00:00]} 38.
Bh5 {[%emt 0:00:50]} Bf5+ {[%emt 0:00:04]} 39. Kf3 {[%emt 0:00:10]} Ne5+ {
[%emt 0:00:05]} 40. Kxf4 {[%emt 0:00:00]} Nd3+ {[%emt 0:00:00]} 41. Ke3 {
[%emt 0:00:00]} Nxb4 {[%emt 0:00:02]} 42. Be2 {[%emt 0:00:33]} Nc2+ {[%emt 0:
00:35]} 43. Kf4 {[%emt 0:00:03]} Nd4 {[%emt 0:00:00]} 44. Bc4 {[%emt 0:00:00]}
Bh3 {[%emt 0:00:59]} 45. Ke4 {[%emt 0:00:35]} Nc2 {[%emt 0:00:15]} 46. Kf4 {
[%emt 0:00:28]} Nd4 {[%emt 0:00:03]} 47. Na4 {[%emt 0:00:26]} Ke7 {[%emt 0:00:
34]} 48. Nc3 {[%emt 0:00:26]} Kd7 {[%emt 0:00:12]} 49. Ne4 {[%emt 0:00:10]} Kc7
{[%emt 0:00:04]} 50. Ng5 {[%emt 0:00:08]} Bd7 {[%emt 0:00:16]} 51. h4 {[%emt 0:
00:04]} b6 {[%emt 0:00:14]} 52. h5 {[%emt 0:00:33]} Nf5 {[%emt 0:00:00]} 53.
Be6 {[%emt 0:00:12]} Ne7 {[%emt 0:00:20]} 54. cxb6+ {[%emt 0:00:06]} Kxb6 {
[%emt 0:00:09]} 55. Bxd7 {[%emt 0:00:00]} Kc7 {[%emt 0:00:03]} 56. Be6 {
[%emt 0:00:20]} Kd6 {[%emt 0:00:02]} 57. Bf7 {[%emt 0:00:08]} Nc8 {[%emt 0:00:
08]} 58. h6 {[%emt 0:00:06]} 1-0

[Event "RUS-ch Rapid 2021"]
[Site "Sochi"]
[Date "2021.10.13"]
[Round "8.18"]
[White "Grebnev, Aleksey"]
[Black "Petrov, Nikita"]
[Result "0-1"]
[ECO "E50"]
[WhiteElo "2469"]
[BlackElo "2539"]
[Annotator "RC"]
[PlyCount "132"]
[EventDate "2021.10.12"]
[EventType "swiss"]
[EventCountry "RUS"]
[SourceTitle "playchess.com"]
[Source "ChessBase"]
[SourceQuality "1"]
[TimeControl "900+10"]

1. d4 {[%emt 0:00:00]} Nf6 {[%emt 0:00:05]} 2. c4 {[%emt 0:00:12]} e6 {[%emt 0:
00:01]} 3. Nc3 {[%emt 0:00:00]} Bb4 {[%emt 0:00:03]} 4. e3 {[%emt 0:00:00]} O-O
{[%emt 0:00:08]} 5. Nf3 {[%emt 0:00:04]} c5 {[%emt 0:00:28]} 6. Bd2 {[%emt 0:
00:01]} b6 {[%emt 0:00:18]} 7. a3 {[%emt 0:00:22]} Bxc3 {[%emt 0:00:00]} 8.
Bxc3 {[%emt 0:00:16]} Ne4 {[%emt 0:00:02]} 9. Rc1 {[%emt 0:00:00]} Bb7 {
[%emt 0:00:06]} 10. Bd3 {[%emt 0:00:19]} Nxc3 {[%emt 0:00:00]} 11. Rxc3 {
[%emt 0:00:12]} d6 {[%emt 0:00:01]} 12. O-O {[%emt 0:00:07]} Nd7 {[%emt 0:00:
07]} 13. d5 {[%emt 0:01:47]} e5 {[%emt 0:00:27]} 14. e4 {[%emt 0:00:16]} g6 {
[%emt 0:00:15]} 15. Qd2 {[%emt 0:01:05]} Kg7 {[%emt 0:00:02]} 16. h3 {[%emt 0:
01:19]} Qe7 {[%emt 0:00:20]} 17. b4 {[%emt 0:01:18]} cxb4 {[%emt 0:01:39]} 18.
axb4 {[%emt 0:00:05]} a5 {[%emt 0:00:00]} 19. Rb1 {[%emt 0:00:07]} axb4 {
[%emt 0:00:59]} 20. Rcb3 {[%emt 0:00:23]} Ra3 {[%emt 0:01:22]} 21. Qxb4 {
[%emt 0:00:59]} Rxb3 {[%emt 0:00:02]} 22. Rxb3 {[%emt 0:00:07]} Nc5 {[%emt 0:
01:14]} 23. Ra3 {[%emt 0:00:21]} Qc7 {[%emt 0:00:15]} 24. Bc2 {[%emt 0:00:41]}
Ra8 {[%emt 0:00:36]} 25. Rxa8 {[%emt 0:00:32]} Bxa8 {[%emt 0:00:00]} 26. Qa3 {
[%emt 0:00:02]} Bb7 {[%emt 0:01:18]} 27. Qa7 {[%emt 0:00:39]} Qd8 {[%emt 0:00:
01]} 28. h4 {[%emt 0:02:29]} Bc8 {[%emt 0:02:40]} 29. g3 {[%emt 0:00:40]} Bg4 {
[%emt 0:01:14]} 30. Qa3 {[%emt 0:01:50]} Bxf3 {[%emt 0:00:27]} 31. Qxf3 {
[%emt 0:00:02]} Qa8 {[%emt 0:00:00]} 32. Qe2 {[%emt 0:01:03]} Qa1+ {[%emt 0:00:
41]} 33. Kg2 {[%emt 0:00:00]} Qc1 {[%emt 0:00:03]} 34. f3 {[%emt 0:00:12]} Qb2
{[%emt 0:00:20]} 35. Qf2 {[%emt 0:00:07]} Qc3 {[%emt 0:00:31]} 36. Qe2 {
[%emt 0:00:00]} Nb7 {[%emt 0:00:03]} 37. g4 {[%emt 0:00:17]} Na5 {[%emt 0:00:
55]} 38. Bd3 {[%emt 0:00:00]} h6 {[%emt 0:00:16]} 39. Kf2 {[%emt 0:00:47]} Nb3
{[%emt 0:00:30]} 40. Qc2 {[%emt 0:00:00]} Qb4 {[%emt 0:00:25]} 41. Kg2 {
[%emt 0:00:32]} Nd4 {[%emt 0:00:27]} 42. Qf2 {[%emt 0:00:01]} Qc3 {[%emt 0:00:
19]} 43. Bf1 {[%emt 0:00:04]} Qc1 {[%emt 0:00:11]} 44. Bd3 {[%emt 0:00:12]} Qf4
{[%emt 0:00:20]} 45. Bf1 {[%emt 0:00:17]} Kg8 {[%emt 0:00:55]} 46. Bd3 {
[%emt 0:00:00]} Kf8 {[%emt 0:00:02]} 47. Bf1 {[%emt 0:00:11]} Kg7 {[%emt 0:01:
07]} 48. Bd3 {[%emt 0:00:00]} Qc1 {[%emt 0:00:00]} 49. Bf1 {[%emt 0:00:10]} Qc3
{[%emt 0:00:00]} 50. Kg3 {[%emt 0:00:53]} f5 {[%emt 0:00:40]} 51. gxf5 {
[%emt 0:00:05]} gxf5 {[%emt 0:00:00]} 52. Kg2 {[%emt 0:00:05]} f4 {[%emt 0:00:
15]} 53. h5 {[%emt 0:02:07]} Qe3 {[%emt 0:00:53]} 54. Qh4 {[%emt 0:00:21]}
Qxf3+ {[%emt 0:00:03]} 55. Kg1 {[%emt 0:00:03]} Qg3+ {[%emt 0:00:45]} 56. Qxg3+
{[%emt 0:00:00]} fxg3 {[%emt 0:00:00]} 57. Kg2 {[%emt 0:00:06]} Kf6 {[%emt 0:
00:00]} 58. Kxg3 {[%emt 0:00:01]} Kg5 {[%emt 0:00:08]} 59. Bd3 {[%emt 0:00:19]}
Kxh5 {[%emt 0:00:00]} 60. Bf1 {[%emt 0:00:02]} Kg5 {[%emt 0:00:00]} 61. Bd3 {
[%emt 0:00:00]} h5 {[%emt 0:00:07]} 62. Bb1 {[%emt 0:00:01]} h4+ {[%emt 0:00:
08]} 63. Kh3 {[%emt 0:00:00]} Ne2 {[%emt 0:00:06]} 64. Bc2 {[%emt 0:00:03]} Nd4
{[%emt 0:00:17]} 65. Bd3 {[%emt 0:00:03]} Nf3 {[%emt 0:00:11]} 66. Bb1 {
[%emt 0:00:06]} Kh5 {[%emt 0:00:10]} 0-1